bitfinex/quotes_SOLUSD_20241103
["timestamp","ask_amount","ask_price","bid_price","bid_amount"]
[1730666749269,29.947784,162.05,161.94,46.3134]
[1730666755462,29.947784,162.05,161.95,2.17763318]
[1730666755668,29.947784,162.05,161.96,21.6102]
[1730666756690,29.947784,162.05,161.94,30.8756]
[1730666756867,29.947784,162.05,161.95,2.17805309]
[1730666757371,70.0,162.08,161.97,0.079991]
[1730666757568,6.5656,162.1,161.98,6.672891]
[1730666757781,6.1683,162.12,162.0,15.0804]
[1730666758288,0.3095565,162.13,162.01,0.22549]
[1730666758590,0.3095565,162.13,162.03,0.12549]
[1730666758764,0.3095565,162.13,162.05,6.5929]
[1730666759406,0.3095565,162.13,162.06,15.0804]
[1730666760483,0.3095565,162.13,162.07,0.12549]
[1730666760683,0.3095565,162.13,162.09,0.12549]
[1730666761387,0.3095565,162.13,162.09,2.29740895]
[1730666761584,0.3095565,162.13,162.12,21.978781]
[1730666761791,0.3095565,162.21,162.12,21.978781]
[1730666761792,0.3095565,162.21,162.19,0.1]
[1730666762096,0.3095565,162.21,162.2,0.205481]
[1730666762301,0.3095565,162.21,162.14,3.46629642]
[1730666762477,0.3095565,162.21,162.13,2.23652843]
[1730666762680,0.3095565,162.21,162.14,21.5862]
[1730666767391,0.3095565,162.21,162.14,15.498691]
[1730666767592,0.3095565,162.21,162.16,6.4947]
[1730666768016,0.3095565,162.21,162.17,0.22549]
[1730666768188,0.3095565,162.21,162.17,0.305481]
[1730666768395,0.3095565,162.21,162.2,0.179991]
[1730666768697,0.3095565,162.21,162.19,0.12549]
[1730666768698,6.1599,162.34,162.22,0.079991]
[1730666768998,6.1599,162.34,162.22,52.3978]
[1730666769183,6.1607,162.32,162.22,52.3978]
[1730666769901,70.0,162.33,162.22,52.3978]
[1730666770588,6.1599,162.34,162.22,52.3978]
[1730666770777,6.1607,162.32,162.22,52.3978]
[1730666770982,6.1607,162.32,162.22,46.2334]
[1730666771190,90.0,162.33,162.22,46.2334]
[1730666771394,6.1602,162.34,162.22,46.2334]
[1730666771593,20.0,162.35,162.22,46.313391]
[1730666772005,96.1596,162.35,162.22,46.2334]
[1730666772201,76.1596,162.35,162.22,46.313391]
[1730666772795,6.1606,162.32,162.22,15.4111]
[1730666773410,6.1608,162.32,162.22,15.4111]
[1730666774621,70.0,162.32,162.22,15.4111]
[1730666774795,23.776884,162.28,162.22,15.4111]
[1730666775121,29.939084,162.28,162.22,15.4111]
[1730666775698,23.776884,162.26,162.19,21.5796]
[1730666776117,23.776884,162.24,162.19,15.414]
[1730666776417,70.12549,162.23,162.15,21.5841]
[1730666776634,23.776884,162.22,162.15,21.5841]
[1730666777002,23.776884,162.2,162.12,21.5888]
[1730666777424,93.776884,162.18,162.12,15.4206]
[1730666777605,23.776884,162.18,162.12,21.5888]
[1730666778712,23.776884,162.18,162.08,52.443]
[1730666780730,23.776884,162.18,162.08,21.5941]
[1730666780731,23.776884,162.16,162.08,21.5941]
[1730666781997,23.776884,162.17,162.08,21.5941]
[1730666782731,23.776884,162.17,162.08,15.4244]
[1730666783805,20.0,162.17,162.08,15.4244]
[1730666784011,30.068274,162.18,162.08,15.4244]
[1730666784407,23.776884,162.18,162.08,15.4244]
[1730666785332,23.776884,162.18,162.08,15.504391]
[1730666785511,12.389,162.23,162.1,0.079991]
[1730666785700,6.2247,162.23,162.11,0.12549]
[1730666786013,70.12549,162.22,162.09,0.079991]
[1730666786209,12.389,162.23,162.09,0.205481]
[1730666786417,6.2247,162.23,162.12,0.079991]
[1730666786611,15.041,162.25,162.14,15.8519]
[1730666786927,6.2247,162.27,162.15,52.54599]
[1730666787314,12.3872,162.27,162.15,52.54599]
[1730666787619,70.0,162.26,162.15,52.4205]
[1730666788617,6.2247,162.27,162.15,52.500491]
[1730666789628,12.3872,162.27,162.15,52.500491]
[1730666789844,82.3872,162.27,162.15,52.4205]
[1730666790139,23.776884,162.26,162.15,52.500491]
[1730666791310,23.776884,162.26,162.15,52.4205]
[1730666791628,29.939784,162.26,162.15,52.4205]
[1730666791847,93.776884,162.24,162.15,21.5849]
[1730666792125,0.12549,162.23,162.15,21.5849]
[1730666792936,6.28969,162.23,162.15,21.5849]
[1730666793223,23.776884,162.22,162.15,21.5849]
[1730666795113,23.776884,162.24,162.15,21.5849]
[1730666795930,20.0,162.23,162.15,21.5849]
[1730666796114,29.940584,162.24,162.12,52.635581]
[1730666796714,29.940584,162.24,162.13,0.079991]
[1730666796928,29.940584,162.24,162.12,52.55559]
[1730666798812,29.940584,162.24,162.12,52.635581]
[1730666799732,23.776884,162.22,162.12,52.4301]
[1730666799905,29.941284,162.22,162.12,52.4301]
[1730666801430,29.941284,162.22,162.14,21.5862]
[1730666803234,29.941284,162.22,162.13,3.45519293]
[1730666803235,29.941284,162.22,162.16,21.5835]
[1730666804236,70.0,162.26,162.16,52.4172]
[1730666804422,6.2247,162.27,162.17,5.63074732]
[1730666804618,6.2247,162.27,162.18,2.16580108]
[1730666804817,6.2247,162.27,162.16,52.4172]
[1730666805017,85.3505565,162.29,162.17,5.63139218]
[1730666805346,21.5123565,162.29,162.19,52.4076]
[1730666805545,91.5123565,162.29,162.2,5.63139218]
[1730666805832,91.5123565,162.29,162.21,2.16606107]
[1730666806030,91.5123565,162.29,162.2,3.46533111]
[1730666806232,91.5123565,162.29,162.22,21.5755]
[1730666806436,23.776884,162.28,162.22,21.5755]
[1730666807317,29.939084,162.28,162.22,15.4111]
[1730666808529,29.939084,162.28,162.19,30.828]
[1730666808740,29.939084,162.28,162.2,2.16695141]
[1730666808941,29.939084,162.28,162.18,3.46750605]
[1730666809122,29.939084,162.28,162.19,2.16678032]
[1730666809323,29.939084,162.28,162.2,2.16678032]
[1730666809628,29.939084,162.28,162.18,3.46750605]
[1730666809830,29.939084,162.28,162.19,2.16584479]
[1730666810034,23.776884,162.26,162.17,21.5822]
[1730666810232,23.776884,162.26,162.18,2.1656622]
[1730666810443,23.776884,162.26,162.19,2.1656622]
[1730666810614,23.776884,162.24,162.2,6.1652]
[1730666811641,23.776884,162.24,162.19,21.5796]
[1730666812329,29.940584,162.24,162.19,21.5796]
[1730666813140,70.12549,162.23,162.16,15.4166]
[1730666813348,23.776884,162.22,162.16,15.4166]
[1730666814251,29.941484,162.22,162.13,3.4654016]
[1730666814548,29.941484,162.22,162.14,2.16563654]
[1730666815134,29.941484,162.22,162.15,21.5849]
[1730666815733,70.12549,162.21,162.15,21.5849]
[1730666815923,23.776884,162.2,162.15,21.5849]
[1730666816131,23.776884,162.2,162.11,15.8519]
[1730666816443,23.776884,162.2,162.06,6.6593]
[1730666816444,23.776884,162.2,162.12,23.75438167]
[1730666816745,23.776884,162.2,162.13,2.16558167]
[1730666816927,20.0,162.19,162.13,2.16558167]
[1730666817134,23.776884,162.18,162.13,2.16558167]
[1730666817338,23.776884,162.18,162.13,6.1676]
[1730666818342,23.776884,162.18,162.12,15.4206]
[1730666818544,29.942984,162.18,162.12,15.4206]
[1730666820021,26.1653,162.2,162.12,15.4206]
[1730666820346,6.2035,162.23,162.13,2.16863279]
[1730666820649,6.1636,162.25,162.14,2.16863279]
[1730666820822,6.1636,162.25,162.13,2.16863279]
[1730666821018,6.1636,162.25,162.14,2.16863279]
[1730666821224,22.4983,162.26,162.15,2.16863279]
[1730666821839,23.776884,162.25,162.15,2.16863279]
[1730666822053,29.940184,162.25,162.16,21.5835]
[1730666822930,29.940184,162.25,162.16,52.4172]
[1730666824028,0.12549,162.23,162.16,15.4168]
[1730666824233,93.902374,162.23,162.16,15.4168]
[1730666825024,23.776884,162.23,162.16,15.4168]
[1730666826547,6.1638,162.24,162.16,15.4168]
[1730666826548,29.940584,162.24,162.16,15.4168]
[1730666829237,29.940584,162.24,162.16,21.5835]
[1730666829549,29.940584,162.24,162.17,2.17189534]
[1730666830331,29.940584,162.24,162.18,15.4149]
[1730666831538,99.940584,162.24,162.18,15.4149]
[1730666831736,0.12549,162.23,162.16,6.1665]
[1730666832364,43.776884,162.21,162.14,21.5854]
[1730666832539,43.776884,162.21,162.15,2.17291951]
[1730666832859,43.776884,162.21,162.16,2.17291951]
[1730666833057,43.776884,162.21,162.14,25.06245664]
[1730666833260,23.776884,162.19,162.15,2.17241522]
[1730666833441,23.776884,162.19,162.14,21.5854]
[1730666833649,23.776884,162.19,162.15,2.17240629]
[1730666833839,23.776884,162.19,162.14,15.418]
[1730666834536,23.776884,162.2,162.14,21.5855]
[1730666834760,23.776884,162.21,162.15,2.17123933]
[1730666834941,23.776884,162.21,162.14,21.5855]
[1730666835144,23.776884,162.21,162.15,2.17101055]
[1730666835348,29.941684,162.21,162.16,6.1667]
[1730666837265,29.941684,162.21,162.14,15.418]
[1730666837465,29.941684,162.21,162.15,2.17061037]
[1730666837651,29.941684,162.21,162.14,15.418]
[1730666838164,29.941684,162.21,162.15,2.17016461]
[1730666838362,29.941684,162.21,162.15,8.33686461]
[1730666839043,23.776884,162.21,162.15,54.59026461]
[1730666839267,12.6678,162.27,162.16,2.17016461]
[1730666839598,12.6678,162.27,162.17,18.20886461]
[1730666839761,12.6678,162.27,162.18,2.17016461]
[1730666839961,12.6678,162.27,162.17,16.0387]
[1730666840163,12.6678,162.27,162.18,2.16920369]
[1730666840469,12.6678,162.27,162.19,23.74880369]
[1730666840645,12.6678,162.27,162.19,21.5796]
[1730666841360,23.776884,162.25,162.17,22.205]
[1730666841545,23.776884,162.23,162.18,2.16889977]
[1730666841744,23.776884,162.23,162.17,6.1663]
[1730666842448,29.940984,162.23,162.17,21.5822]
[1730666843338,29.940984,162.23,162.15,30.8356]
[1730666843548,29.940984,162.23,162.16,2.16905819]
[1730666843764,29.940984,162.23,162.17,2.16905819]
[1730666843968,29.940984,162.23,162.16,3.4708779]
[1730666844156,29.940984,162.23,162.17,2.16901612]
[1730666844359,29.940984,162.23,162.15,34.30641059]
[1730666844545,29.940984,162.23,162.16,23.75203284]
[1730666844745,29.940984,162.23,162.17,2.16923284]
[1730666845269,29.940984,162.23,162.16,21.5828]
[1730666845481,29.940984,162.23,162.17,8.33523262]
[1730666845780,29.940984,162.23,162.17,23.75113262]
[1730666846068,29.940984,162.23,162.17,21.5819]
[1730666846274,26.1629,162.26,162.17,21.5819]
[1730666846774,70.0,162.24,162.17,21.5819]
[1730666847577,29.940884,162.23,162.15,30.8356]
[1730666847759,29.940884,162.23,162.16,2.16939505]
[1730666847964,29.940884,162.23,162.15,30.8356]
[1730666848279,29.940884,162.23,162.16,2.1692247]
[1730666848574,29.940884,162.23,162.15,30.8356]
[1730666848784,29.940884,162.23,162.16,2.16936498]
[1730666848957,29.940884,162.23,162.15,52.4205]
[1730666849282,43.776884,162.21,162.16,2.16937503]
[1730666849472,43.776884,162.21,162.15,21.5849]
[1730666850375,49.942084,162.21,162.15,21.5849]
[1730666852163,49.942084,162.21,162.16,2.17136689]
[1730666852358,49.942084,162.21,162.15,21.5849]
[1730666852557,49.942084,162.21,162.16,2.17176792]
[1730666852758,49.942084,162.21,162.15,21.5849]
[1730666853085,49.942084,162.21,162.16,2.17184545]
[1730666853381,49.942084,162.21,162.15,21.5849]
[1730666853554,49.942084,162.21,162.16,2.17238614]
[1730666853760,49.942084,162.21,162.15,21.5849]
[1730666853972,49.942084,162.21,162.16,2.17252603]
[1730666854172,49.942084,162.21,162.15,21.5849]
[1730666854375,49.942084,162.21,162.16,2.1729449]
[1730666854665,49.942084,162.21,162.15,21.5849]
[1730666854875,49.942084,162.21,162.16,2.17352716]
[1730666855078,49.942084,162.21,162.15,21.5849]
[1730666855265,23.776884,162.22,162.16,2.17352787]
[1730666855468,6.1633,162.25,162.17,2.17415663]
[1730666855673,21.401,162.26,162.18,2.17362262]
[1730666855887,21.401,162.26,162.19,2.17362262]
[1730666856063,21.401,162.26,162.16,3.47907534]
[1730666856263,21.401,162.26,162.17,5.65284967]
[1730666856467,21.401,162.26,162.18,2.17377433]
[1730666856663,21.401,162.26,162.15,52.4205]
[1730666856664,23.776884,162.25,162.19,2.17377433]
[1730666856974,6.1637,162.24,162.19,6.1653]
[1730666857863,6.1637,162.24,162.18,15.4144]
[1730666858064,6.1637,162.24,162.19,2.17435107]
[1730666858264,6.1637,162.24,162.18,18.89348617]
[1730666858491,6.1637,162.24,162.19,2.17435383]
[1730666858683,6.1637,162.24,162.18,18.89348617]
[1730666858984,23.776884,162.25,162.2,6.1652]
[1730666859291,91.6867,162.3,162.21,2.17448846]
[1730666859597,6.1611,162.31,162.22,2.17358838]
[1730666859883,6.1611,162.31,162.21,3.47798396]
[1730666860088,6.1611,162.31,162.22,2.17352076]
[1730666860290,6.1606,162.33,162.21,3.47798396]
[1730666860487,6.1606,162.33,162.22,5.65053038]
[1730666860690,6.1606,162.33,162.23,2.17254642]
[1730666860984,20.0,162.32,162.23,21.5742]
[1730666861499,26.1607,162.32,162.23,21.5742]
[1730666862071,6.1603,162.33,162.23,52.3946]
[1730666862278,6.498,162.34,162.24,0.12549]
[1730666862486,6.1599,162.34,162.24,6.77929]
[1730666862790,6.1603,162.33,162.24,6.6538]
[1730666862966,6.1603,162.33,162.25,21.5716]
[1730666867493,20.3095565,162.37,162.25,52.3882]
[1730666867670,20.3095565,162.37,162.27,15.3239]
[1730666868189,0.3095565,162.37,162.28,0.12549]
[1730666869390,0.3095565,162.37,162.28,6.28759]
[1730666870386,6.4686565,162.37,162.28,6.28759]
[1730666871606,0.3095565,162.37,162.28,6.28759]
[1730666872188,6.1593,162.36,162.28,6.1621]
[1730666872411,6.1607,162.32,162.26,21.5702]
[1730666872901,6.1603,162.33,162.26,21.5702]
[1730666873074,6.161,162.31,162.26,21.5702]
[1730666873675,6.1607,162.32,162.26,21.5702]
[1730666874392,6.1607,162.32,162.23,21.5742]
[1730666875993,20.0,162.33,162.23,21.5742]
[1730666876298,6.1612,162.31,162.23,21.5742]
[1730666877299,6.1609,162.32,162.23,21.5742]
[1730666877688,6.1611,162.31,162.23,21.5742]
[1730666879401,6.1615,162.3,162.23,21.5742]
[1730666879702,6.1611,162.31,162.23,21.5742]
[1730666880203,20.0,162.33,162.23,21.5742]
[1730666880204,20.0,162.33,162.24,0.12549]
[1730666880378,6.2576,162.34,162.24,0.12549]
[1730666880781,20.0,162.33,162.23,52.3946]
[1730666882502,6.1612,162.31,162.23,52.3946]
[1730666884622,23.776884,162.28,162.23,21.5742]
[1730666884985,0.3095565,162.29,162.23,21.5742]
[1730666885405,0.3095565,162.29,162.23,52.3946]
[1730666885601,0.3095565,162.29,162.26,0.12549]
[1730666886907,0.3095565,162.29,162.27,21.5689]
[1730666890808,0.3095565,162.29,162.23,83.215]
[1730666891314,0.3095565,162.29,162.24,0.12549]
[1730666891502,0.3095565,162.29,162.24,0.205481]
[1730666891987,0.3095565,162.29,162.24,0.12549]
[1730666892985,0.3095565,162.29,162.25,21.5716]
[1730666897517,0.3095565,162.29,162.27,21.5689]
[1730666898293,0.3095565,162.29,162.27,15.4064]
[1730666899390,0.3095565,162.29,162.23,68.0805684]
[1730666899590,0.3095565,162.29,162.24,23.72925217]
[1730666899904,0.3095565,162.29,162.24,21.5729]
[1730666901217,23.776884,162.28,162.24,15.4092]
[1730666901519,29.939184,162.28,162.2,21.5782]
[1730666901695,29.939184,162.28,162.21,2.1588533]
[1730666902700,29.939184,162.28,162.22,21.5755]
[1730666903503,29.939184,162.28,162.22,15.4111]
[1730666906511,0.3095565,162.29,162.22,15.4111]
[1730666906717,0.3095565,162.29,162.23,2.15807776]
[1730666907399,0.3095565,162.29,162.24,17.59308095]
[1730666907591,0.3095565,162.29,162.26,0.12549]
[1730666907788,0.3095565,162.29,162.28,0.12549]
[1730666907996,0.3095565,162.29,162.28,8.44498095]
[1730666908803,0.3095565,162.29,162.28,6.28759]
[1730666909022,0.3095565,162.29,162.28,8.44383689]
[1730666912303,0.3095565,162.29,162.28,8.44504283]
[1730666915701,0.3095565,162.29,162.28,6.28759]
[1730666915904,0.3095565,162.29,162.28,8.31933536]
[1730666916805,0.3095565,162.29,162.28,8.44482536]
[1730666920808,0.3095565,162.29,162.28,8.31933536]
[1730666921905,0.3095565,162.29,162.28,8.44482536]
[1730666922627,0.3095565,162.29,162.28,30.064474]
[1730666922812,0.3095565,162.29,162.28,32.29952002]
[1730666923139,0.3095565,162.29,162.28,35.7474634]
[1730666924414,0.3095565,162.37,162.31,0.305481]
[1730666924614,0.3095565,162.37,162.33,23.856875]
[1730666924811,0.3095565,162.37,162.35,0.12549]
[1730666925417,0.3095565,162.37,162.35,2.27720934]
[1730666926222,0.3095565,162.37,162.35,0.12549]
[1730666926615,0.3095565,162.37,162.36,6.28459]
[1730666926816,0.3095565,162.37,162.36,6.1591]
[1730666927842,0.3095565,162.37,162.35,0.12549]
[1730666930124,0.3095565,162.37,162.36,6.1591]
[1730666931919,0.3095565,162.37,162.33,30.8006]
[1730666946151,0.3095565,162.37,162.31,15.4026]
[1730666946330,6.7908565,162.37,162.31,15.4026]
[1730666948131,15.8169,162.36,162.31,15.4026]
[1730666949261,21.9763,162.36,162.24,52.3914]
[1730666949551,21.9763,162.36,162.25,0.12549]
[1730666949754,21.9763,162.36,162.25,6.56466501]
[1730666950230,23.776884,162.33,162.25,6.43917501]
[1730666951027,29.937184,162.33,162.24,30.8185]
[1730666952233,29.937184,162.33,162.25,2.14608134]
[1730666953042,29.937184,162.33,162.24,52.3914]
[1730666953338,29.937184,162.33,162.24,46.2277]
[1730666953543,23.776884,162.33,162.24,46.2277]
[1730666954043,29.936384,162.35,162.24,46.2277]
[1730666954044,20.0,162.34,162.24,46.2277]
[1730666954244,23.776884,162.33,162.24,46.2277]
[1730666956044,29.937284,162.33,162.24,46.2277]
[1730666957955,23.776884,162.33,162.24,46.2277]
[1730666960871,29.937284,162.33,162.24,46.2277]
[1730666961171,29.937284,162.33,162.24,15.4092]
[1730666962045,11.11716891,162.32,162.24,15.4092]
[1730666962363,29.937284,162.33,162.24,15.4092]
[1730666962878,23.776884,162.3,162.24,15.4092]
[1730666963347,23.776884,162.3,162.23,6.164]
[1730666963348,23.776884,162.28,162.23,6.164]
[1730666963743,23.776884,162.28,162.21,21.5765]
[1730666964253,29.939284,162.28,162.18,21.5808]
[1730666966864,29.939284,162.28,162.18,52.4107]
[1730666967762,22.6509,162.32,162.19,0.12549]
[1730666968277,22.6509,162.32,162.19,20.12549]
[1730666968450,22.6509,162.32,162.21,0.12549]
[1730666968651,22.6509,162.32,162.23,0.12549]
[1730666969276,22.9604565,162.37,162.23,6.59809]
[1730666970561,99.1194565,162.37,162.23,6.59809]
[1730666970871,99.1194565,162.37,162.25,0.12549]
[1730666971166,22.9604565,162.37,162.25,0.12549]
[1730666971368,22.9604565,162.37,162.26,15.7472]
[1730666971565,22.9604565,162.37,162.27,0.12549]
[1730666972353,22.9604565,162.37,162.28,52.3784]
[1730666972853,22.9604565,162.37,162.29,0.12549]
[1730666973163,0.3095565,162.37,162.29,0.12549]
[1730666974255,0.3095565,162.37,162.3,21.5649]
[1730666976876,100.2453405,162.37,162.3,15.4035]
[1730666977192,93.776884,162.35,162.26,15.4068]
[1730666977493,23.776884,162.32,162.26,15.4068]
[1730666977774,23.776884,162.3,162.26,15.4068]
[1730666978459,23.776884,162.3,162.21,21.5769]
[1730666981269,23.776884,162.3,162.23,21.5742]
[1730666982189,23.776884,162.3,162.23,15.4102]
[1730666984183,23.776884,162.28,162.23,15.4102]
[1730666984368,23.776884,162.26,162.23,15.4102]
[1730666984568,23.776884,162.28,162.23,15.4102]
[1730666985362,23.776884,162.28,162.19,3.43599262]
[1730666985681,29.939084,162.28,162.2,21.5782]
[1730666986883,29.939084,162.28,162.2,15.413]
[1730666987678,23.776884,162.28,162.21,2.14782566]
[1730666988066,23.776884,162.28,162.2,20.99774478]
[1730666988264,23.776884,162.28,162.21,2.14782566]
[1730666988784,23.776884,162.28,162.22,21.5755]
[1730666989781,23.776884,162.28,162.22,15.4111]
[1730666992514,23.0616,162.29,162.24,21.5729]
[1730666992692,98.277,162.33,162.24,21.5729]
[1730666993262,11.55338932,162.32,162.24,21.5729]
[1730666993468,98.277,162.33,162.24,21.5729]
[1730666993681,98.277,162.33,162.23,30.8196]
[1730666993882,23.776884,162.32,162.2,3.56675411]
[1730666994074,23.776884,162.32,162.22,0.12549]
[1730666994262,23.776884,162.32,162.22,2.27609888]
[1730666994462,23.776884,162.32,162.22,0.12549]
[1730666994686,23.776884,162.32,162.22,2.27609888]
[1730666994892,23.776884,162.32,162.23,21.5742]
[1730666995470,23.776884,162.32,162.24,2.15026114]
[1730666996489,23.776884,162.32,162.24,2.15048111]
[1730666996681,23.776884,162.32,162.24,4.30097198]
[1730666997183,29.937484,162.32,162.25,21.5716]
[1730666997577,0.1,162.35,162.25,52.3882]
[1730666997578,6.1595,162.35,162.25,52.3882]
[1730666997783,6.1595,162.35,162.26,2.14930375]
[1730666997988,22.4262565,162.37,162.27,2.27479375]
[1730666998173,22.4262565,162.37,162.28,2.14930375]
[1730666999273,22.4262565,162.37,162.29,21.5663]
[1730667000394,22.4262565,162.37,162.29,52.3753]
[1730667000973,28.5849565,162.37,162.29,21.5663]
[1730667001196,28.5849565,162.37,162.29,15.4045]
[1730667002789,22.4262565,162.37,162.29,15.4045]
[1730667002975,0.3095565,162.37,162.29,15.4045]
[1730667003296,0.3095565,162.37,162.3,0.12549]
[1730667004012,0.3095565,162.37,162.32,0.12549]
[1730667004985,0.3095565,162.37,162.33,21.5609]
[1730667006477,24.0864405,162.37,162.33,15.4007]
[1730667007394,30.2453405,162.37,162.33,15.4007]
[1730667007603,30.2453405,162.37,162.28,30.8109]
[1730667007777,30.2453405,162.37,162.29,2.14570687]
[1730667008879,30.2453405,162.37,162.3,21.5649]
[1730667009990,30.2453405,162.37,162.28,30.8109]
[1730667011208,0.3095565,162.37,162.3,21.5649]
[1730667011677,0.3095565,162.37,162.3,52.372]
[1730667011880,0.3095565,162.37,162.31,0.12549]
[1730667013503,0.3095565,162.37,162.32,21.5622]
[1730667014599,6.1577,162.4,162.32,21.5622]
[1730667014805,23.776884,162.4,162.32,21.5622]
[1730667015187,92.7979,162.43,162.32,52.3655]
[1730667015381,23.776884,162.42,162.32,30.8033]
[1730667016621,29.933684,162.42,162.32,30.8033]
[1730667018299,29.933684,162.42,162.34,21.5596]
[1730667021291,41.38327973,162.42,162.34,21.5596]
[1730667021492,29.933684,162.42,162.34,21.5596]
[1730667022608,29.933684,162.42,162.32,30.8033]
[1730667024703,41.27169813,162.42,162.32,30.8033]
[1730667024911,29.933684,162.42,162.32,30.8033]
[1730667026596,70.0,162.41,162.3,30.8071]
[1730667026923,23.776884,162.38,162.3,30.8071]
[1730667027696,23.776884,162.38,162.28,15.4054]
[1730667028314,23.776884,162.35,162.28,15.4054]
[1730667028716,23.776884,162.33,162.28,15.4054]
[1730667028895,23.776884,162.36,162.28,15.4054]
[1730667029098,29.935984,162.36,162.28,15.4054]
[1730667029301,22.1964,162.37,162.28,15.4054]
[1730667029615,28.3551,162.37,162.28,15.4054]
[1730667032401,22.1964,162.37,162.28,15.4054]
[1730667032608,28.3551,162.37,162.28,15.4054]
[1730667033517,93.776884,162.36,162.28,15.4054]
[1730667033708,20.0,162.35,162.28,15.4054]
[1730667033912,23.776884,162.34,162.28,15.4054]
[1730667034516,6.1602,162.33,162.25,30.8162]
[1730667034825,6.1602,162.33,162.26,2.14245391]
[1730667035321,6.1602,162.33,162.25,30.8162]
[1730667035510,6.1602,162.33,162.27,21.5689]
[1730667037017,6.1602,162.33,162.25,30.8162]
[1730667037212,26.1598,162.35,162.26,2.14420061]
[1730667038098,96.1598,162.35,162.26,2.14420061]
[1730667038300,23.776884,162.34,162.26,2.14420061]
[1730667038501,6.1602,162.33,162.27,21.5689]
[1730667039400,6.1602,162.33,162.27,15.4064]
[1730667039600,23.776884,162.32,162.27,15.4064]
[1730667040607,6.1602,162.34,162.24,21.5729]
[1730667040808,23.776884,162.33,162.25,2.14689029]
[1730667041013,23.776884,162.33,162.26,2.14689029]
[1730667041323,23.776884,162.33,162.27,2.14689029]
[1730667041540,23.776884,162.33,162.25,2.14689029]
[1730667041829,6.1603,162.33,162.26,23.71709029]
[1730667042026,6.1603,162.33,162.27,2.14689029]
[1730667042400,6.1603,162.33,162.27,2.14737585]
[1730667042605,6.1603,162.33,162.26,21.5702]
[1730667042823,6.1603,162.33,162.27,4.29468732]
[1730667043409,6.1603,162.33,162.28,2.14734875]
[1730667044026,6.1603,162.33,162.28,8.30924875]
[1730667044323,23.776884,162.34,162.28,23.71464875]
[1730667044527,23.776884,162.34,162.28,21.5673]
[1730667044906,29.936884,162.34,162.28,21.5673]
[1730667047824,70.0,162.33,162.27,8.30953857]
[1730667048021,23.776884,162.32,162.27,8.30953857]
[1730667048617,23.776884,162.32,162.27,2.14733857]
[1730667048808,23.776884,162.29,162.27,2.14733857]
[1730667049217,93.776884,162.28,162.27,2.14733857]
[1730667049430,93.776884,162.28,162.22,15.4107]
[1730667049631,29.939384,162.27,162.22,15.4107]
[1730667051430,29.939384,162.27,162.2,6.1652]
[1730667052407,42.1639881,162.27,162.2,6.1652]
[1730667052626,29.939384,162.27,162.2,6.1652]
[1730667052821,42.03679409,162.27,162.2,6.1652]
[1730667053036,23.776884,162.25,162.2,6.1652]
[1730667054134,23.776884,162.25,162.2,21.5782]
[1730667055533,23.776884,162.25,162.2,15.413]
[1730667055729,35.89521109,162.25,162.2,15.413]
[1730667055930,23.776884,162.25,162.2,15.413]
[1730667058233,35.83634688,162.27,162.2,15.413]
[1730667058430,23.776884,162.28,162.2,15.413]
[1730667059035,93.776884,162.28,162.2,15.413]
[1730667059215,23.776884,162.26,162.2,15.413]
[1730667061346,20.0,162.29,162.2,15.413]
[1730667061632,21.4115,162.31,162.21,16.2125]
[1730667062229,21.4115,162.31,162.22,0.12549]
[1730667062428,15.4988,162.35,162.22,0.12549]
[1730667062429,12.29796489,162.35,162.22,0.12549]
[1730667062621,22.9101,162.36,162.22,0.12549]
[1730667062840,22.9101,162.36,162.22,46.14211755]
[1730667063021,22.9101,162.36,162.24,0.12549]
[1730667063522,6.1583,162.39,162.26,0.12549]
[1730667063841,6.1583,162.39,162.27,16.2125]
[1730667064031,20.0,162.38,162.27,16.2125]
[1730667064840,20.0,162.37,162.28,21.5675]